Cogmind - Beta 12 @@@ ROGUE MODE // 2024.02.14 @ 15:31:31 Player: Treadwheel Result: Destroyed by D-53 Grenadier with Mini Grenade Launcher Performance ------------- Evolutions (0) 0 Regions Visited (2) 400 Robots Destroyed (36) 180 Value Destroyed (694) 694 Prototype IDs (2) 40 Alien Tech Used (0) 0 Bonus (-269) -269 TOTAL SCORE: 1045 Bonus ------- Friendly Fire -269 Cogmind --------- Core Integrity 0/250 Matter 278/300 Energy 100/100 System Corruption 0% Temperature Cool (0) Movement Core (250) Ox4 Location -10/Mines Parts ------- > --- POWER (1) -------- (None) > --- PROPULSION (2) --- (None) > --- UTILITY (2) ------ Medium Storage Unit Sensor Array > --- WEAPON (2) ------- Hammer > --- INVENTORY (10) --- Light Ion Engine Heat Sink Seismic Detector Light Armor Plating Spread Laser Light Assault Rifle Grenade Launcher Datajack Peak State ------------ > --- POWER ------------ Ion Engine > --- PROPULSION ------- Light Treads Light Treads > --- UTILITY ---------- Medium Storage Unit Seismic Detector > --- WEAPON ----------- Spread Laser Spread Laser > --- INVENTORY -------- Light Ion Engine Light Treads Light Treads Light Treads Heat Sink Terrain Scanner Light Armor Plating Grenade Launcher Datajack Hammer [Rating: 10] Favorites ----------- Power Light Ion Engine Engine Light Ion Engine Propulsion Light Treads Treads Light Treads Utility Medium Storage Unit Device Sensor Array Storage Medium Storage Unit Weapon Spread Laser Energy Gun Spread Laser Ballistic Gun Assault Rifle Launcher Grenade Launcher Impact Weapon Hammer Special Melee Weapon Datajack Build | -11 -10 -10 ------- Run | Jun Mat Min Slots Evolved . | . . . Power . | . . . Propulsion . | . . . Utility . | . . . Weapon . | . . . Parts Attached 35 | 7 15 13 Power 8 | 1 2 5 Engine 8 | 1 2 5 Core . | . . . Reactor . | . . . Propulsion 6 | 2 1 3 Treads 6 | 2 1 3 Leg . | . . . Wheel . | . . . Hover . | . . . Flight . | . . . Utility 11 | 2 7 2 Device 8 | 1 5 2 Storage 3 | 1 2 . Processor . | . . . Hackware . | . . . Protection . | . . . Artifact . | . . . Weapon 10 | 2 5 3 Energy Gun 3 | . 3 . Energy Cannon . | . . . Ballistic Gun 3 | 2 . 1 Ballistic Cannon . | . . . Launcher 1 | . . 1 Special Weapon . | . . . Impact Weapon 2 | . 1 1 Slashing Weapon . | . . . Piercing Weapon . | . . . Special Melee Weapon 1 | . 1 . Unidentified Prototypes . | . . . Parts Lost 15 | . 5 10 Power 6 | . 2 4 Propulsion 5 | . . 5 Utility 1 | . 1 . Weapon 3 | . 2 1 Highest Loss Streak 4 | . 3 4 To Critical Strikes . | . . . Average Slot Usage (%) 96 | . 95 97 Engine 10 | . 10 11 Treads 27 | . 28 27 Device 13 | . 13 14 Storage 14 | . 14 14 Energy Gun 18 | . 18 17 Ballistic Gun 5 | . 6 4 Impact Weapon 3 | . 1 5 Naked Turns . | . . . Heaviest Build 22 | 12 22 20 Greatest Support 40 | 40 40 40 Greatest Overweight (x) 2 | 2 . . Average Overweight (x) . | . . . Largest Inventory Capacity 10 | 8 10 10 Average Capacity 9 | 7 9 10 Most Carried 10 | 6 10 10 Average Carried 8 | 4 9 8 Final Capacity 10 | 8 10 10 Final Carried 10 | 6 10 8 Class Distribution -------------------- 100% | Mutant Dominant Class ---------------- Mutant | -10/Materials Mutant | -10/Mines Resources | -11 -10 -10 ----------- Run | Jun Mat Min Matter Collected 590 | 274 198 118 Remotely . | . . . Salvage Created 848 | 16 452 380 Parts 59 | 3 32 24 Haulers Intercepted . | . . . Recyclers Shooed . | . . . Parts Field Recycled . | . . . Retrieved Matter . | . . . Parts Self-Destructed . | . . . Prevented . | . . . Kills | -11 -10 -10 ------- Run | Jun Mat Min Combat Hostiles Destroyed 35 | . 11 24 Melee 2 | . 2 . Guns 21 | . 8 13 AOE 11 | . . 11 Classes Destroyed 9 | 1 6 2 Builder 1 | . . 1 Tunneler 3 | 1 . 2 Recycler 3 | . 2 1 Mechanic 1 | . 1 . Operator 2 | . 2 . Watcher 3 | . 3 . Swarmer 9 | . 3 6 Grunt 14 | . 8 6 Assembled 14 | . . 14 Best Kill Streak 14 | 1 3 14 Combat Bots Only 14 | . 3 14 Max Kills in Single Turn 6 | 1 1 6 Gunslinging . | . . . Exploded 5 | . . 5 Melee 1 | . 1 . Uniques/NPCs Destroyed . | . . . Combat | -11 -10 -10 -------- Run | Jun Mat Min Damage Taken 1743 | . 640 1103 Core 253 | . 31 222 Absorbed by Shields . | . . . Core Remaining (%) 100 | 100 . . Volleys Fired 80 | 1 43 36 Largest 2 | 2 2 2 Hottest 130 | 40 130 130 Shots Fired 143 | 2 77 64 Gun 137 | 2 77 58 Cannon . | . . . Launcher 6 | . . 6 Special . | . . . Kinetic 29 | 2 27 . Thermal 108 | . 50 58 Explosive 6 | . . 6 Electromagnetic . | . . . Robot Hit Streak 10 | 1 10 9 Robot Miss Streak 14 | . 14 13 Penetration Max . | . . . Secondary Targets 1 | . . 1 Max Gunslinging Chain 1 | . . 1 Shots Hit Robots 123 | 1 66 56 Core Hits 147 | 1 58 88 Critical Kills . | . . . Critical Parts Destroyed 2 | . 1 1 Critical Strikes 2 | . 1 1 Smash 2 | . 1 1 Melee Attacks 14 | . 10 4 Impact 13 | . 9 4 Slashing . | . . . Piercing . | . . . Sneak Attacks 4 | . . 4 Combat Hostiles . | . . . Follow-up Attacks . | . . . Damage Inflicted 2494 | 13 925 1556 Guns 1172 | 13 594 565 Cannons . | . . . Explosions 870 | . 87 783 Melee 433 | . 225 208 Ramming 19 | . 19 . Kinetic 197 | 13 184 . Thermal 975 | . 410 565 Explosive 870 | . 87 783 Electromagnetic . | . . . Impact 433 | . 225 208 Slashing . | . . . Piercing . | . . . Highest Corruption . | . . . Average Corruption . | . . . Corruption Purged . | . . . Corruption Blocked . | . . . Overload Shots . | . . . Overflow Damage 201 | . 113 88 Projectiles . | . . . Explosions 76 | . 76 . Melee 125 | . 37 88 Knockbacks 3 | . 2 1 Impact 3 | . 2 1 Kinetic . | . . . Secondary . | . . . Self-Inflicted Damage 188 | . 188 . Shots 2 | . 2 . Rammed 4 | . 4 . Targets Rammed 6 | . 6 . Kicked . | . . . Crushed 2 | . 2 . Highest Temperature 399 | . 313 399 Average Temperature 119 | . 87 149 Received Heat Transfer 345 | . 228 117 Effects 2 | . . 2 Shutdowns 1 | . . 1 Interference 1 | . . 1 Siege Activations . | . . . Robots Corrupted . | . . . Combat Hostiles . | . . . Parts Fried 8 | . 1 7 Impact Corruptions 7 | . 3 4 Robots Melted . | . . . Combat Hostiles . | . . . Parts Melted . | . . . Heat Transferred 1210 | . 520 690 Parts Sabotaged . | . . . Parts Stolen . | . . . Parts Stripped . | . . . Power Chain Reactions . | . . . Missiles Intercepted . | . . . Alert | -11 -10 -10 ------- Run | Jun Mat Min Peak Influence 265 | 5 220 265 Initial 35 | . 3 35 Average 89 | 2 91 94 Maximum Alert Level 1 | . 1 1 Low Security (%) 92 | 100 98 81 Level 1 7 | . 1 18 Level 2 . | . . . Level 3 . | . . . Level 4 . | . . . Level 5 . | . . . High Security . | . . . Max Security . | . . . Squads Dispatched 2 | . 2 . Investigation . | . . . Extermination . | . . . Reinforcement 2 | . 2 . Assault . | . . . Garrison . | . . . Intercept . | . . . Searches Triggered . | . . . Construction Impeded . | . . . Haulers Reinforced . | . . . Active Scanning Responses . | . . . Cargo Convoy Interrupts . | . . . Stealth | -11 -10 -10 --------- Run | Jun Mat Min Distress Signals . | . . . Communications Jammed . | . . . Distress Signals . | . . . Times Spotted 59 | . 25 34 Peak Tracking Total 15 | . 5 15 Tactical Retreats 6 | . 4 2 Traps | -11 -10 -10 ------- Run | Jun Mat Min Traps Triggered . | . . . Indirectly . | . . . Trap Hack Attempts . | . . . Triggered . | . . . Disarmed . | . . . Reprogrammed . | . . . Reused . | . . . Traps Extracted . | . . . Installed . | . . . Triggered . | . . . Machines | -11 -10 -10 ---------- Run | Jun Mat Min Machines Disabled 2 | . 2 . Max in Single Turn 2 | . 2 . Machines Repaired . | . . . Machines Sabotaged . | . . . Overloaded Fab Kills . | . . . Hacking | -11 -10 -10 --------- Run | Jun Mat Min Machines Accessed 6 | . 6 . Terminals 4 | . 4 . Fabricators . | . . . Repair Stations . | . . . Recycling Units 2 | . 2 . Scanalyzers . | . . . Garrison Access . | . . . Total Hacks 26 | . 26 . Successful 9 | . 9 . Failed 17 | . 17 . Catastrophic 4 | . 4 . Database Lockouts . | . . . Manual 6 | . 6 . Terminals 16 | . 16 . Fabricators . | . . . Repair Stations . | . . . Recycling Units 10 | . 10 . Scanalyzers . | . . . Garrison Access . | . . . Terminal Hacks 6 | . 6 . Robot Analysis 1 | . 1 . Prototype ID Bank 1 | . 1 . Branch Access Points 1 | . 1 . Alert Level 1 | . 1 . Transport Status 1 | . 1 . Zone Layout 1 | . 1 . Fabricator Hacks . | . . . Repair Station Hacks . | . . . Recycling Unit Hacks 1 | . 1 . Report Inventory 1 | . 1 . Scanalyzer . | . . . Garrison Access Hacks . | . . . Unauthorized Hacks 2 | . 2 . Terminals . | . . . Fabricators . | . . . Repair Stations . | . . . Recycling Units 2 | . 2 . Reject 2 | . 2 . Scanalyzers . | . . . Garrison Access . | . . . Data Cores Recovered . | . . . Used . | . . . Hacking Detections 6 | . 6 . Full Trace Events 1 | . 1 . Feedback Events . | . . . Feedback Blocked . | . . . Robot Schematics Acquired . | . . . Robots Built . | . . . Authchips . | . . . Time . | . . . Total Robot Build Rating . | . . . Part Schematics Acquired . | . . . Parts Built . | . . . Authchips . | . . . Time . | . . . Total Part Build Rating . | . . . Parts Repaired . | . . . Time . | . . . Parts Recycled . | . . . Recycled Matter . | . . . Retrieved Matter . | . . . Retrieved Components . | . . . Parts Scanalyzed . | . . . Part Schematics Acquired . | . . . Parts Damaged . | . . . Bothacking | -11 -10 -10 ------------ Run | Jun Mat Min Used RIF Installer . | . . . Robots Hacked 1 | . 1 . Non-combat . | . . . Combat 1 | . 1 . Robot Hacks Applied 1 | . 1 . parse_system 1 | . 1 . Relay Couplers Released . | . . . Fabnet Peak Effective % . | . . . Robots Rewired . | . . . Allies Hacked . | . . . Hacks Repelled . | . . . Allies | -11 -10 -10 -------- Run | Jun Mat Min Total Allies 3 | . . 3 Largest Group 3 | . . 3 Highest-Rated Group 40 | . . 40 Highest-Rated Ally 16 | . . 16 Total Orders . | . . . Ally Attacks 18 | . . 18 Total Damage 138 | . . 138 Kills 3 | . . 3 Allies Corrupted . | . . . Allies Melted . | . . . Intel | -11 -10 -10 ------- Run | Jun Mat Min Robot Analysis Total 1 | . 1 . Derelict Logs Recovered . | . . . Drone Launches . | . . . Drone Recoveries . | . . . Exploration | -11 -10 -10 ------------- Run | Jun Mat Min Turns Passed 2716 | 95 1604 1017 Spaces Moved 1363 | 52 819 492 Core 9 | 9 . . Treads 1354 | 43 819 492 Legs . | . . . Wheels . | . . . Hover . | . . . Flight . | . . . Fastest Speed 50 | 50 160 160 Average Speed 159 | 147 160 160 Slowest Speed 160 | 160 160 160 Overloaded Moves . | . . . Propulsion Burnouts . | . . . Robots Hopped . | . . . Cave-ins Triggered . | . . . Exploration Rate (%) 52 | 4 98 56 Regions Visited 2 Branch Regions 1 Pre-discovered Areas . | . . . Known Exits Taken 1 | . 1 . Unknown Exits Taken 1 | 1 . . Scrap Searched 1 | . . 1 Spaces Dug . | . . . Terrain Destroyed 54 | . 27 27 Melee . | . . . Projectile . | . . . AOE 54 | . 27 27 Terrain Rammed . | . . . Walls Destroyed . | . . . Machines Disabled . | . . . Actions | -11 -10 -10 --------- Run | Jun Mat Min Total 1732 | 66 1019 647 Wait 199 | . 101 98 Move 1361 | 51 818 492 Hop . | . . . Pick Up 23 | 7 13 3 Fast Attach 10 | 6 2 2 Attach 9 | 1 3 5 Detach 1 | . 1 . Swap 16 | . 10 6 Drop 13 | . 12 1 Fire 80 | 1 43 36 Melee 14 | . 10 4 Ram . | . . . Kick . | . . . Crush 6 | . 6 . Escape Stasis . | . . . Rewire . | . . . Trap . | . . . Miscellaneous . | . . . Route ------- -11/Junkyard -10/Materials (discovered 4 exits: [*Mat x3] / *Min) -10/Mines History --------- Turn | Location | Event 19 | -11/Junkyard | Discovered new exit (range 16) 96 | -11/Junkyard | Entered Materials 228 | -10/Materials | Discovered new exit (range 16) 303 | -10/Materials | Build established: Mutant 306 | -10/Materials | Identified exit to Mines 766 | -10/Materials | Lost 3 parts (1p1u1w) 1391 | -10/Materials | Discovered new exit (range 16) 1591 | -10/Materials | Discovered new exit (range 14) 1700 | -10/Materials | Entered Mines 2246 | -10/Mines | Assisted by bots powering up and referring to "LRC-V3" 2255 | -10/Mines | Assembled infested the area 2302 | -10/Mines | Core integrity fell below 50% 2330 | -10/Mines | Destroyed 14 combat bots 2341 | -10/Mines | Lost 4 parts (2p2n) 2717 | -10/Mines | Core integrity fell below 20% 2717 | -10/Mines | Destroyed by D-53 Grenadier with Mini Grenade Launcher Last Messages --------------- 02445_ Acquired 11 matter. 02499_ K-01 Serf collects debris. 02555_ T-07 Excavator is excavating. 02558_ U-05 Engineer lays Concrete. 02560_ T-07 Excavator is excavating. 02560_ U-05 Engineer builds a Wall. 02564_ T-07 Excavator is excavating. 02565_ U-05 Engineer builds a Wall. 02568_ T-07 Excavator is excavating. 02570_ U-05 Engineer builds a Wall. 02573_ T-07 Excavator is excavating. 02611_ Sneak attack on K-01 Serf. 02611_ Destroyed Lgt. Ion Engine. 02611_ K-01 Serf system corrupted by crushing effect. 02611_ K-01 Serf knocked back. 02702_ Lgt. Treads destroyed. 02702_ Lgt. Ion Engine destroyed. 02705_ The unstable cave ceiling collapses. 02715_ Spread Laser destroyed. 02717_ Lgt. Treads destroyed. Map ----- +----------------------------------------------------+ | ??????????????????# #?# #???## ##???????????? | | ??????????????????# #?# ##???# ##??????????? | | ??????????????????# ### #????# ##?????????? | | ??????????????????# #?????# ##????????? | | ??????????????????##### ####### ##???????? | | ??????????????????????# ### #####???? | | ??????????????????????######### #?## ####? | | ??????????????????????????????# #??## #? | | ??????????????????????????????# #???## # | | ???????????????#???????????#### #????# ## # | | ?????????????? #???????????# #????# ### ## | | ?????????????? ???????##### #####????# #??# ##? | | ???????????### #### #?## ## #????????# #???####?? | | ??????????? ### #????????# #????????? | | ??????????? # ## #??????# #????????? | | ??????????? ! ## #??????# #????????? | | ???????????# [% ###### ###??????# #????????? | | ??????????? #?????###????????# #????????? | | ??????????? #?????????????????# #????????? | | ????????#### #???????????????????# #????????? | | ???????## %*% #???????????????????# #????##### | | ?????### = #??#########????????# #???## | | ?????# #??# #????????# #???# | | ?????# #??## ##???????# #??## | | ?????# ##??# #???????# #??# | | ?????##### ##???# d @ ##??##### #?## | | ?????????## ##????#%# ##?# ### ### | | ??????????##%##?????#!# ### ## ### ##?? | | ???????????# #??????# ### # ## ##?### ##??? | | ???????????# #??????# #?##### # ## ## #???? | | ???????????# #??????# #???## d #?## ##??? | | ???????????# #??????# #??## # # ##?? | | ???????????# #??##### #### t ### | | ???????????# #??# ?! ? ##### # | | ???????????# #??# ######## # #???## | | ???????????# #??# #??????# [ ######### ## | | ???????????# ####?#??????#### % = [* ## | | ???????????# #?????????#==############## # | | ???????????###### #????????## %####?????????# ## | | ????????????????# #????????#% % #?????????# #?# | | ????????????????# #????????# %| #?????????# #?? | | ????????????????# #????????# %#?????????# #?? | | ????????????????# ????????# % #??????#### #?? | | ???????????????? ???????###%#####??????# #?? | | ???????????????? ???????# #####???# ## #?? | | ???????????????? ???????# !!! ##??# ## #?? | | ???????????????? ???????# ! #?## # #?? | | ???????????????? ???????# ! ! ### ### ### | | ???????????????? ???????# !!! ## ## | | ????????????????###???????# ## ### | +----------------------------------------------------+ Best States ------------- Heat Dissipation 35 Energy Generation 10 Energy Capacity 250 Matter Stores 300 Matter Capacity 300 Sight Range 16 Robot Scan Range 14 Terrain Scan Density 10 Evasion (%) 40 Recoil Reduction 2 Item Schematics ----------------- None Robot Schematics ------------------ None Fabricated ------------ Nothing Alien Tech Used ----------------- None Achievements -------------- True Hacker Challenges ------------ None Game ------ Seed ConstructFusionMallet Manual? 0 Play Time 00:31:20 Cumulative 21.5 hours Start 2024.02.11 @ 23:01:18 End 2024.02.14 @ 15:31:31 Sessions 4 Manual Loads 0 Difficulty Rogue Special Mode None Game No. 14 Rogue 14 Adventurer 0 Explorer 0 Win Type - Total 0 Types 0/0/0/0/0/0/0/0/0 Lore% 20 Gallery% 23 Achievement% 19 Wizard Run 0 Options --------- ASCII 0 Keyboard 0 Movement Numpad Keybinds 0 Fullscreen 1 Font 12/Smallcaps Map View 83x54 Tactical HUD 1 Map Filters NONE Filters NONE Steam 1 RUN: fb32922b-c148-4636-a49e-251785234d8c